lending/lending_fUSD_20250819
["ID","MTS","AMOUNT","RATE_DAILY","PERIOD"]
[380296336,1755642632573,-22337.31099222,0.00011,2]
[380296338,1755642632583,-104957.38938859,0.00011,2]
[380296340,1755642632594,-13376.43604133,0.00011,2]
[380296344,1755642632605,-591.348914,0.00011,2]
[380296381,1755642633029,-2435.08410106,0.00011,2]
[380296382,1755642633040,-2530.23999999,0.00011,2]
[380296383,1755642633052,-1995.41654942,0.00011,2]
[380296386,1755642638092,-395.49278915,0.00011,2]
[380296387,1755642638125,-41645.91558432,0.00011,2]
[380296388,1755642638134,-5231.32851777,0.00011,2]
[380296389,1755642638143,-151.0,0.00011,2]
[380296390,1755642638155,-8218188.5886879,0.00011,2]
[380296391,1755642638169,-1143.18800655,0.00011,2]
[380296650,1755642641105,-272.66107451,0.000109,2]
[380296652,1755642641115,-5006.49810949,0.00011,2]
[380296654,1755642641126,-7993.03272805,0.00011,2]
[380296666,1755642641247,-5640.0,0.00011,2]
[380296670,1755642641273,-15000.0,0.00011,2]
[380296672,1755642641284,-25551.75048728,0.00011,2]
[380296871,1755642643382,-877.71703632,0.00011,2]
[380296878,1755642643442,-484.90977668,0.00011,2]
[380296879,1755642643508,-38437.04145159,0.00011,2]
[380296880,1755642643524,-253.5945,0.00011,2]
[380296881,1755642643576,-3480.49725428,0.00011,2]
[380296882,1755642643587,-15171.89936153,0.00011,2]
[380296883,1755642643665,-470.87859331,0.00011,2]
[380296884,1755642643677,-2469.23045371,0.00011,2]
[380296885,1755642646468,-2917.00264536,0.00011,2]
[380296886,1755642646479,-2129.8409,0.00011,2]
[380296887,1755642646490,-855.76098,0.00011,2]
[380296888,1755642646502,-1174.9,0.00011,2]
[380296889,1755642646515,-4080.53603882,0.00011,2]
[380296890,1755642646526,-2699.09742631,0.00011,2]
[380296891,1755642646630,-650.0,0.00011,2]
[380296892,1755642646650,-527.85,0.00011,2]
[380296893,1755642646707,-1000.0,0.00011,2]
[380296899,1755642805941,4310.80410842,0.000147,30]
[380296923,1755643803074,169.9,9.443e-05,2]
[380296924,1755643826915,157.51,9.433e-05,2]
[380296963,1755643834318,-170.0,9.836e-05,7]
[380296964,1755643834328,-238.13146888,9.886e-05,2]
[380296965,1755643834338,-125.32261732,9.888e-05,2]
[380296966,1755643834445,-24.67738268,9.888e-05,2]
[380296967,1755643834456,-150.0,9.888e-05,2]
[380296968,1755643834466,-150.0,9.888e-05,2]
[380296969,1755643834476,-150.0,9.888e-05,2]
[380296970,1755643834485,-150.0,9.888e-05,2]
[380296971,1755643834496,-150.0,9.888e-05,2]
[380296972,1755643834505,-150.68077506,9.888e-05,2]
[380296973,1755643834515,-150.0,9.888e-05,2]
[380296974,1755643834524,-150.0,9.888e-05,2]
[380296975,1755643834533,-150.0,9.888e-05,2]
[380296976,1755643834542,-150.0,9.888e-05,2]
[380296977,1755643834552,-150.0,9.933e-05,2]
[380296978,1755643834561,-150.0,9.935e-05,2]
[380296979,1755643834570,-150.0,9.938e-05,2]
[380296980,1755643834580,-150.0,9.952e-05,2]
[380296981,1755643834589,-150.0,9.956e-05,2]
[380296982,1755643834599,-150.0,9.979e-05,2]
[380296983,1755643834608,-150.0,9.983e-05,2]
[380296984,1755643834617,-9044.06,9.983e-05,2]
[380296985,1755643834627,-150.0,9.988e-05,2]
[380296986,1755643834637,-150.0,0.0001001,2]
[380296987,1755643834646,-150.0,0.00010017,2]
[380296988,1755643834655,-150.0,0.00010025,2]
[380296989,1755643834664,-150.0,0.00010025,2]
[380296990,1755643834674,-198.16,0.00010028,2]
[380296991,1755643834684,-150.0,0.00010031,2]
[380296992,1755643834694,-1000.0,0.00010037,2]
[380296993,1755643834705,-150.0,0.00010037,2]
[380296994,1755643834714,-150.0,0.00010071,2]
[380296995,1755643834724,-150.0,0.00010079,2]
[380296996,1755643834733,-150.0,0.00010082,2]
[380296997,1755643834743,-150.0,0.00010087,2]
[380296998,1755643834752,-150.0,0.00010094,2]
[380296999,1755643834761,-150.0,0.00010117,2]
[380297000,1755643834770,-150.0,0.00010127,2]
[380297001,1755643834780,-150.0,0.00010127,2]
[380297002,1755643834789,-150.0,0.00010132,2]
[380297003,1755643834799,-150.0,0.00010137,2]
[380297004,1755643834808,-150.0,0.00010146,2]
[380297005,1755643834818,-150.0,0.00010162,2]
[380297006,1755643834827,-150.0,0.00010162,2]
[380297007,1755643834837,-150.0,0.00010162,2]
[380297008,1755643834847,-150.0,0.00010174,2]
[380297009,1755643834856,-150.0,0.00010187,2]
[380297010,1755643834866,-936.57,0.0001019,2]
[380297011,1755643834875,-150.0,0.00010208,2]
[380297012,1755643834885,-150.0,0.00010211,2]
[380297013,1755643834895,-150.0,0.00010222,2]
[380297014,1755643834904,-150.0,0.00010231,2]
[380297015,1755643834913,-150.0,0.00010237,2]
[380297016,1755643834923,-150.0,0.00010254,2]
[380297017,1755643834933,-150.0,0.00010254,2]
[380297018,1755643834942,-150.0,0.0001027,2]
[380297019,1755643834954,-150.0,0.00010275,2]
[380297020,1755643834964,-150.0,0.00010287,2]
[380297021,1755643834974,-150.0,0.000103,2]
[380297022,1755643834984,-150.0,0.000103,2]
[380297023,1755643834993,-150.0,0.00010318,2]
[380297024,1755643835003,-150.0,0.00010337,2]
[380297025,1755643835013,-150.0,0.0001034,2]
[380297026,1755643835022,-150.0,0.00010345,2]
[380297027,1755643835034,-150.0,0.00010365,2]
[380297028,1755643835049,-150.0,0.00010368,2]
[380297029,1755643835059,-150.0,0.00010376,2]
[380297030,1755643835068,-150.0,0.00010387,2]
[380297031,1755643835078,-150.0,0.00010391,2]
[380297032,1755643835088,-150.0,0.00010405,2]
[380297033,1755643835097,-150.0,0.00010413,2]
[380297034,1755643835107,-150.0,0.00010437,2]
[380297035,1755643835116,-150.0,0.00010437,2]
[380297036,1755643835126,-150.0,0.00010437,2]
[380297037,1755643835136,-150.0,0.00010437,2]
[380297038,1755643835146,-150.0,0.00010461,2]
[380297039,1755643835156,-150.0,0.00010469,2]
[380297040,1755643835166,-150.0,0.00010483,2]
[380297041,1755643835175,-150.0,0.00010487,2]
[380297042,1755643835184,-150.0,0.00010498,2]
[380297043,1755643835194,-150.0,0.00010506,2]
[380297044,1755643835206,-150.0,0.00010509,2]
[380297045,1755643835215,-150.0,0.00010529,2]
[380297046,1755643835224,-150.0,0.00010534,2]
[380297047,1755643835234,-150.0,0.00010537,2]
[380297048,1755643835243,-150.0,0.00010556,2]
[380297049,1755643835253,-150.0,0.00010574,2]
[380297050,1755643835262,-150.0,0.00010574,2]
[380297051,1755643835272,-150.0,0.00010587,2]
[380297052,1755643835281,-150.0,0.00010599,2]
[380297053,1755643835291,-150.0,0.00010604,2]
[380297054,1755643835301,-150.0,0.0001062,2]
[380297055,1755643835311,-150.0,0.0001062,2]
[380297056,1755643835321,-150.0,0.00010637,2]
[380297057,1755643835331,-150.0,0.00010643,2]
[380297058,1755643835341,-150.0,0.00010652,2]
[380297059,1755643835350,-150.0,0.00010663,2]
[380297060,1755643835360,-150.0,0.00010666,2]
[380297061,1755643835370,-150.0,0.00010687,2]
[380297062,1755643835379,-150.0,0.000107,2]
[380297063,1755643835389,-150.0,0.00010712,2]
[380297064,1755643835399,-150.0,0.00010712,2]
[380297065,1755643835408,-150.0,0.00010712,2]
[380297066,1755643835420,-150.0,0.00010728,2]
[380297067,1755643835429,-150.0,0.00010737,2]
[380297068,1755643835439,-150.0,0.00010742,2]
[380297069,1755643835448,-150.0,0.00010747,2]
[380297070,1755643835458,-150.0,0.00010757,2]
[380297071,1755643835467,-150.0,0.0001078,2]
[380297072,1755643835476,-150.0,0.00010787,2]
[380297073,1755643835486,-150.0,0.00010792,2]
[380297074,1755643835497,-150.0,0.00010795,2]
[380297075,1755643835506,-150.0,0.00010803,2]
[380297076,1755643835515,-150.0,0.00010836,2]
[380297077,1755643835524,-150.0,0.00010843,2]
[380297078,1755643835534,-150.0,0.00010849,2]
[380297079,1755643835543,-150.0,0.00010849,2]
[380297080,1755643835552,-150.0,0.00010857,2]
[380297081,1755643835563,-150.0,0.00010864,2]
[380297082,1755643835573,-150.0,0.00010886,2]
[380297083,1755643835583,-150.0,0.00010891,2]
[380297084,1755643835592,-150.0,0.00010895,2]
[380297085,1755643835601,-2151.2457288,0.000109,2]
[380297086,1755643835611,-196.82229564,0.000109,2]
[380297087,1755643835620,-224.6379049,0.000109,2]
[380297088,1755643835630,-1476.95792408,0.000109,2]
[380297089,1755643835639,-181.77404966,0.000109,2]
[380297090,1755643835648,-150.0,0.00010918,2]
[380297091,1755643835658,-150.0,0.00010922,2]
[380297092,1755643835667,-150.0,0.00010936,2]
[380297093,1755643835676,-150.0,0.00010939,2]
[380297094,1755643835689,-150.0,0.00010941,2]
[380297095,1755643835705,-500.0,0.00010973,2]
[380297096,1755643835714,-500.0,0.00010973,2]
[380297097,1755643835723,-292.85708412,0.00010973,2]
[380297098,1755643835733,-500.0,0.00010973,2]
[380297099,1755643835742,-150.0,0.00010986,2]
[380297100,1755643835751,-150.0,0.00010986,2]
[380297101,1755643835768,-150.0,0.00010986,2]
[380297102,1755643835784,-150.00000001,0.00010986,2]
[380297103,1755643835793,-150.0,0.00010986,2]
[380297104,1755643835802,-22.06840178,0.00010986,2]
[380297112,1755643839060,-127.93159822,0.00010986,2]
[380297113,1755643839070,-150.0,0.00010986,2]
[380297114,1755643839079,-150.0,0.00010986,2]
[380297115,1755643839090,-107.92313996,0.00010999,2]
[380297116,1755643839109,-116.71476493,0.00010999,2]
[380297117,1755643839118,-202.15989483,0.00010999,2]
[380297118,1755643839128,-750.40565362,0.00011,2]
[380297119,1755643839175,-826.05035972,0.00011,2]
[380297120,1755643839315,-3945827.94557605,0.00011,2]
[380297121,1755643839324,-4319388.88721394,0.00011,2]
[380297122,1755643840604,-3357.90929542,0.00011,2]
[380297578,1755643845019,-3939.59089149,0.00011,2]
[380297715,1755643846451,-2176.55578582,0.00011,2]
[380297734,1755643846624,-262.18435819,0.00011,2]
[380298139,1755643932570,1000.0,0.000221,120]
[380298140,1755643939761,1000.0,0.000221,120]
[380298154,1755645032202,-168.338204,9.779e-05,2]
[380298155,1755645032212,-539.73598152,0.00010013,2]
[380298156,1755645032225,-209.51401848,0.00010013,2]
[380298157,1755645032235,-1000.0,0.00010017,2]
[380298158,1755645032245,-157.51,0.00010018,2]
[380298159,1755645032255,-250.0,0.00010018,2]
[380298160,1755645032266,-170.0,0.00010022,7]
[380298161,1755645032276,-688.85945752,0.00010022,2]
[380298162,1755645032318,-3127.45967441,0.00010022,2]
[380298163,1755645032330,-1254.48237651,0.00010022,2]
[380298164,1755645032343,-5640.43849156,0.00010022,2]
[380298165,1755645032353,-2000.0,0.00010866,2]
[380298166,1755645032363,-300.0,0.00010866,2]
[380298167,1755645032373,-168.70482486,0.000109,2]
[380298168,1755645032383,-199.35314318,0.000109,2]
[380298169,1755645032393,-178.47084857,0.00010913,2]
[380298170,1755645032404,-185.98541062,0.00010914,2]
[380298171,1755645032414,-185.98541062,0.00010915,2]
[380298172,1755645032424,-178.47084857,0.00010916,2]
[380298173,1755645032434,-2606.41188678,0.00010918,2]
[380298174,1755645032445,-185.98541062,0.00010921,2]
[380298175,1755645032455,-185.98541062,0.00010928,2]
[380298176,1755645032465,-342.35744252,0.00010936,2]
[380298177,1755645032475,-185.98541062,0.00010938,2]
[380298178,1755645032485,-2308.56057883,0.00010943,2]
[380298179,1755645032498,-297.85130795,0.00010943,2]
[380298180,1755645032510,-2606.41188678,0.00010944,2]
[380298181,1755645032825,-237.21940402,0.00010948,2]
[380298182,1755645032898,-2606.41188678,0.00010951,2]
[380298183,1755645032907,-237.21940402,0.00010959,2]
[380298184,1755645032917,-237.21940402,0.0001096,2]
[380298185,1755645032926,-342.35744252,0.0001096,2]
[380298186,1755645032935,-2606.41188678,0.00010962,2]
[380298187,1755645032945,-178.47084857,0.00010963,2]
[380298188,1755645032954,-178.47084857,0.00010963,2]
[380298189,1755645032963,-237.21940402,0.00010964,2]
[380298190,1755645032976,-342.35744252,0.00010969,2]
[380298191,1755645032986,-500.0,0.00010973,2]
[380298192,1755645032995,-500.0,0.00010973,2]
[380298193,1755645033004,-500.0,0.00010973,2]
[380298194,1755645033014,-4183.1,0.00010973,2]
[380298195,1755645033023,-150.99,0.00010973,2]
[380298196,1755645033033,-342.35744252,0.00010975,2]
[380298197,1755645033042,-2606.41188678,0.0001098,2]
[380298198,1755645033052,-237.21940402,0.00010981,2]
[380298199,1755645033062,-178.47084857,0.00010981,2]
[380298200,1755645033071,-178.47084857,0.00010983,2]
[380298201,1755645033081,-178.47084857,0.00010984,2]
[380298202,1755645033090,-237.21940402,0.00010986,2]
[380298203,1755645033100,-342.35744252,0.00010987,2]
[380298204,1755645033109,-2606.41188678,0.00010988,2]
[380298205,1755645033119,-342.35744252,0.0001099,2]
[380298206,1755645033129,-2000.0,0.0001099,2]
[380298207,1755645033138,-150.0,0.00010992,2]
[380298208,1755645033148,-151.0,0.00010993,2]
[380298209,1755645033158,-200.0,0.00010993,2]
[380298210,1755645033167,-151.0,0.00010993,2]
[380298211,1755645033177,-151.0,0.00010993,2]
[380298212,1755645033186,-151.0,0.00010993,2]
[380298213,1755645033195,-151.0,0.00010993,2]
[380298214,1755645033206,-151.0,0.00010993,2]
[380298215,1755645033215,-253.13510356,0.00010993,2]
[380298216,1755645033225,-500.0,0.00010993,2]
[380298217,1755645033234,-156.587,0.00010993,2]
[380298218,1755645033244,-237.21940402,0.00010994,2]
[380298219,1755645033253,-185.98541062,0.00010997,2]
[380298220,1755645033263,-185.98541062,0.00010997,2]
[380298221,1755645033272,-269.28014135,0.00010999,2]
[380298222,1755645033283,-155.3013398,0.00010999,2]
[380298223,1755645033293,-342.35744252,0.00010999,2]
[380298224,1755645033303,-67176.11716075,0.00011,2]
[380298225,1755645033317,-47871.06350936,0.00011,2]
[380298226,1755645033329,-10855.01554344,0.00011,2]
[380298227,1755645033341,-26497.7172749,0.00011,2]
[380298228,1755645033373,-461.78754401,0.00011,2]
[380298229,1755645033384,-1337.14245599,0.00011,2]
[380298230,1755645033396,-610.44814184,0.00011,2]
[380298231,1755645033425,-820.49483808,0.00011,2]
[380298232,1755645034516,-2398.1441439,0.00011,2]
[380298237,1755645037952,-3521.0634407,0.00011,2]
[380298238,1755645037964,-1391.58935,0.00011,2]
[380298239,1755645037980,-524.25000002,0.00011,2]
[380298240,1755645038004,-632.10865498,0.00011,2]
[380298241,1755645038043,-9470.12456092,0.00011,2]
[380298243,1755645038094,-1495415.56122468,0.00011,2]
[380298245,1755645038103,-293047.07,0.00011,2]
[380298247,1755645038113,-15861.77,0.00011,2]
[380298250,1755645038123,-202590.7949735,0.00011,2]
[380298252,1755645038133,-16970.8974522,0.00011,2]
[380298254,1755645038143,-200.382346,0.00011,2]
[380298256,1755645038153,-150.0,0.00011,2]
[380298258,1755645038162,-200.0,0.00011,2]
[380298260,1755645038172,-426.50688288,0.00011,2]
[380298262,1755645038182,-964295.25075462,0.00011,2]
[380298264,1755645038191,-79742.9269988,0.00011,2]
[380298266,1755645038208,-150.0,0.00011,2]
[380298268,1755645038229,-150.0,0.00011,2]
[380298270,1755645038248,-500.0,0.00011,2]
[380298272,1755645038269,-150.0,0.00011,2]
[380298274,1755645038281,-500.0,0.00011,2]
[380298276,1755645038291,-517.0,0.00011,2]
[380298278,1755645038301,-270.19803509,0.00011,2]
[380298280,1755645038311,-500.0,0.00011,2]
[380298282,1755645038321,-150.0,0.00011,2]
[380298284,1755645038331,-150.0,0.00011,2]
[380298286,1755645038340,-150.0,0.00011,2]
[380298288,1755645038350,-150.0,0.00011,2]
[380298290,1755645038360,-150.0,0.00011,2]
[380298292,1755645038370,-2096.90184,0.00011,2]
[380298294,1755645038379,-150.0,0.00011,2]
[380298296,1755645038390,-300.0,0.00011,2]
[380298298,1755645038399,-150.0,0.00011,2]
[380298301,1755645038409,-500.0,0.00011,2]
[380298303,1755645038419,-150.0,0.00011,2]
[380298305,1755645038428,-305.09,0.00011,2]
[380298307,1755645038438,-305.87,0.00011,2]
[380298309,1755645038448,-150.8,0.00011,2]
[380298311,1755645038458,-201.49,0.00011,2]
[380298313,1755645038468,-200.43,0.00011,2]
[380298315,1755645038478,-202.8,0.00011,2]
[380298317,1755645038488,-200.89,0.00011,2]
[380298319,1755645038499,-203.0,0.00011,2]
[380298321,1755645038509,-302.75,0.00011,2]
[380298323,1755645038519,-303.7,0.00011,2]
[380298325,1755645038529,-305.09,0.00011,2]
[380298327,1755645038539,-150.42,0.00011001,2]
[380298330,1755645038549,-203.38,0.00011001,2]
[380298332,1755645038558,-203.77,0.00011001,2]
[380298334,1755645038568,-200.33,0.00011001,2]
[380298336,1755645038578,-202.72,0.00011001,2]
[380298338,1755645038588,-305.15,0.00011001,2]
[380298340,1755645038597,-200.51,0.00011002,2]
[380298342,1755645038607,-200.84,0.00011002,2]
[380298344,1755645038617,-201.5,0.00011002,2]
[380298346,1755645038627,-304.84,0.00011003,2]
[380298348,1755645038636,-300.98,0.00011003,2]
[380298350,1755645038646,-151.39,0.00011004,2]
[380298352,1755645038656,-203.67,0.00011009,2]
[380298354,1755645038665,-201.58,0.00011009,2]
[380298356,1755645038675,-201.58,0.00011009,2]
[380298358,1755645038685,-200.17,0.00011009,2]
[380298360,1755645038695,-203.61,0.00011009,2]
[380298363,1755645038705,-303.65,0.0001101,2]
[380298365,1755645038715,-300.88,0.0001101,2]
[380298367,1755645038725,-169.9,0.00011017,2]
[380298369,1755645038735,-150.18,0.00011017,2]
[380298371,1755645038744,-202.02,0.0001102,2]
[380298373,1755645038754,-202.69,0.0001102,2]
[380298375,1755645038763,-203.79,0.0001102,2]
[380298377,1755645038773,-203.0,0.0001102,2]
[380298379,1755645038783,-203.32,0.0001102,2]
[380298381,1755645038794,-305.93,0.00011021,2]
[380298383,1755645038804,-200.55,0.00011034,2]
[380298385,1755645038815,-201.39,0.00011034,2]
[380298388,1755645038824,-200.87,0.00011034,2]
[380298390,1755645038834,-201.95,0.00011034,2]
[380298392,1755645038844,-151.87,0.00011069,2]
[380298394,1755645038854,-67342.65358811,0.00011099,2]
[380298396,1755645038864,-200.66,0.00011137,2]
[380298398,1755645038874,-301.98,0.00011154,2]
[380298400,1755645038884,-67342.6535881,0.00011189,2]
[380298402,1755645038894,-750.8,0.000112,2]
[380298404,1755645038904,-798.74,0.000112,2]
[380298406,1755645038914,-302.43,0.00011206,2]
[380298408,1755645038924,-301.16,0.00011206,2]
[380298410,1755645038934,-301.8,0.00011264,2]
[380298413,1755645038943,-749.25,0.00011265,2]
[380298415,1755645038953,-1000.0,0.0001127,2]
[380298417,1755645038963,-150.0,0.00011274,2]
[380298419,1755645038975,-150.0,0.00011274,2]
[380298421,1755645038985,-150.0,0.00011274,2]
[380298423,1755645038995,-500.0,0.00011274,2]
[380298425,1755645039005,-150.0,0.00011274,2]
[380298427,1755645039015,-500.0,0.00011274,2]
[380298429,1755645039025,-517.0,0.00011274,2]
[380298431,1755645039035,-500.0,0.00011274,2]
[380298433,1755645039045,-150.0,0.00011274,2]
[380298435,1755645039055,-207.91791004,0.00011274,2]
[380298438,1755645039067,-300.0,0.00011274,2]
[380298440,1755645039077,-500.0,0.00011274,2]
[380298442,1755645039087,-198.16,0.00011282,2]
[380298444,1755645039097,-179.49,0.00011439,2]
[380298446,1755645039107,-67342.6535881,0.00011478,2]
[380298448,1755645039117,-151.0,0.000115,2]
[380298450,1755645039127,-260.26193,0.000115,2]
[380298452,1755645039137,-151.0,0.000115,2]
[380298454,1755645039146,-151.0,0.000115,2]
[380298456,1755645039156,-151.0,0.000115,2]
[380298458,1755645039166,-151.0,0.000115,2]
[380298459,1755645039176,-151.0,0.000115,2]
[380298460,1755645039186,-151.0,0.000115,2]
[380298461,1755645039196,-151.0,0.000115,2]
[380298462,1755645039206,-151.0,0.000115,2]
[380298463,1755645039215,-151.0,0.000115,2]
[380298464,1755645039226,-151.0,0.000115,2]
[380298465,1755645039236,-2751.0,0.00011507,2]
[380298466,1755645039245,-150.0,0.00011548,2]
[380298467,1755645039257,-150.0,0.00011548,2]
[380298468,1755645039267,-500.0,0.00011548,2]
[380298469,1755645039278,-200.0,0.00011548,2]
[380298470,1755645039288,-500.0,0.00011548,2]
[380298471,1755645039298,-517.0,0.00011548,2]
[380298472,1755645039308,-500.0,0.00011548,2]
[380298473,1755645039319,-200.0,0.00011548,2]
[380298474,1755645039329,-300.0,0.00011548,2]
[380298475,1755645039338,-500.0,0.00011548,2]
[380298476,1755645039348,-45204.116527,0.00011643,2]
[380298477,1755645039358,-3786.7190663,0.00011643,2]
[380298478,1755645039368,-17793.0520719,0.00011643,2]
[380298479,1755645039377,-67342.6535881,0.00011767,2]
[380298480,1755645039388,-10086.40176,0.00011786,2]
[380298481,1755645039397,-844.9312317,0.00011786,2]
[380298482,1755645039408,-3970.1665583,0.00011786,2]
[380298483,1755645039418,-284.156198,0.000118,2]
[380298484,1755645039428,-200.0,0.00011822,2]
[380298485,1755645039438,-150.0,0.00011822,2]
[380298486,1755645039448,-500.0,0.00011822,2]
[380298487,1755645039458,-500.0,0.00011822,2]
[380298488,1755645039468,-517.0,0.00011822,2]
[380298489,1755645039477,-500.0,0.00011822,2]
[380298490,1755645039487,-300.0,0.00011822,2]
[380298491,1755645039497,-500.0,0.00011822,2]
[380298492,1755645039507,-500.0,0.0001199,2]
[380298493,1755645039517,-500.0,0.0001199,2]
[380298495,1755645039527,-95154.79992501,0.00012,2]
[380298497,1755645039537,-26060.24952738,0.00012,2]
[380298498,1755645039547,-255.0,0.00012037,2]
[380298499,1755645039557,-67342.6535881,0.00012056,2]
[380298500,1755645039567,-500.0,0.00012086,2]
[380298501,1755645039576,-197.63449272,0.00012096,2]
[380298502,1755645039586,-500.0,0.00012096,2]
[380298503,1755645039596,-517.0,0.00012096,2]
[380298504,1755645039605,-500.0,0.00012096,2]
[380298505,1755645039615,-300.0,0.00012096,2]
[380298506,1755645039625,-500.0,0.00012096,2]
[380298507,1755645039635,-3421.18,0.000121,7]
[380298508,1755645039645,-855.29,0.000121,7]
[380298509,1755645039655,-2565.88,0.000121,7]
[380298510,1755645039664,-221.436637,0.000121,2]
[380298511,1755645039674,-151.0,0.000121,2]
[380298512,1755645039683,-151.0,0.000121,2]
[380298513,1755645039693,-151.0,0.000121,2]
[380298514,1755645039702,-151.0,0.000121,2]
[380298515,1755645039716,-151.0,0.000121,2]
[380298516,1755645039732,-151.0,0.000121,2]
[380298517,1755645039743,-151.0,0.000121,2]
[380298518,1755645040081,-151.0,0.000121,2]
[380298519,1755645040102,-2685.97,0.000121,7]
[380298520,1755645040112,-268.0,0.0001211,3]
[380298521,1755645040124,-181.77404966,0.00012113,2]
[380298522,1755645040133,-500.0,0.00012124,2]
[380298523,1755645040143,-500.0,0.00012214,2]
[380298524,1755645040152,-500.0,0.00012214,2]
[380298525,1755645040161,-500.0,0.00012214,2]
[380298526,1755645040171,-500.0,0.00012214,2]
[380298527,1755645040180,-500.0,0.00012214,2]
[380298528,1755645040189,-500.0,0.00012244,2]
[380298529,1755645040199,-500.0,0.00012244,2]
[380298530,1755645040208,-500.0,0.00012244,2]
[380298531,1755645040219,-500.0,0.00012244,2]
[380298532,1755645040228,-500.0,0.00012244,2]
[380298533,1755645040238,-500.0,0.00012244,2]
[380298534,1755645040247,-602.29158006,0.0001227,2]
[380298535,1755645040257,-151.0,0.00012333,2]
[380298536,1755645040267,-151.0,0.00012333,2]
[380298537,1755645040276,-218.29214,0.00012333,2]
[380298538,1755645040286,-151.0,0.00012333,2]
[380298539,1755645040295,-151.0,0.00012333,2]
[380298540,1755645040305,-151.0,0.00012333,2]
[380298541,1755645040315,-151.0,0.00012333,2]
[380298542,1755645040328,-151.0,0.00012333,2]
[380298543,1755645040338,-151.0,0.00012333,2]
[380298544,1755645040348,-151.0,0.00012333,2]
[380298545,1755645040358,-303.536632,0.00012333,2]
[380298546,1755645040367,-303.536632,0.00012333,2]
[380298547,1755645040377,-303.536632,0.00012333,2]
[380298548,1755645040387,-303.536632,0.00012333,2]
[380298549,1755645040396,-151.0,0.00012333,2]
[380298550,1755645040406,-151.450263,0.00012333,2]
[380298551,1755645040416,-151.0,0.00012333,2]
[380298552,1755645040425,-151.0,0.00012333,2]
[380298553,1755645040435,-221.254131,0.00012333,2]
[380298554,1755645040444,-221.254131,0.00012333,2]
[380298555,1755645040454,-221.254131,0.00012333,2]
[380298556,1755645040463,-151.0,0.00012333,2]
[380298557,1755645040472,-221.254131,0.00012333,2]
[380298558,1755645040482,-151.0,0.00012333,2]
[380298559,1755645040492,-151.0,0.00012333,2]
[380298560,1755645040501,-151.0,0.00012333,2]
[380298561,1755645040511,-211.950238,0.00012333,2]
[380298562,1755645040520,-151.0,0.00012333,2]
[380298563,1755645040529,-211.950238,0.00012333,2]
[380298564,1755645040539,-211.950238,0.00012333,2]
[380298565,1755645040548,-211.950238,0.00012333,2]
[380298566,1755645040557,-151.0,0.00012333,2]
[380298567,1755645040569,-151.0,0.00012333,2]
[380298568,1755645040579,-151.0,0.00012333,2]
[380298569,1755645040589,-280.698173,0.00012333,2]
[380298570,1755645040598,-151.0,0.00012333,2]
[380298571,1755645040607,-151.0,0.00012333,2]
[380298572,1755645040617,-309.369611,0.00012333,2]
[380298573,1755645040626,-309.369611,0.00012333,2]
[380298574,1755645040636,-309.369611,0.00012333,2]